fUST/lending_fUST_20250101
["ID","MTS","AMOUNT","RATE_DAILY","PERIOD"]
[347302957,1735669883317,-500.0,0.00019726,3]
[347302958,1735669883340,-577.55,0.00019726,3]
[347302959,1735669883362,-500.0,0.00019726,3]
[347302960,1735669883385,-752.33,0.00019726,3]
[347302961,1735669883407,-500.0,0.00019726,3]
[347302962,1735669883428,-500.0,0.00019726,3]
[347302963,1735669883450,-265.78726849,0.000199,2]
[347302964,1735669883473,-191.69923657,0.0002,3]
[347302965,1735669883496,-2902.22,0.0002,3]
[347302966,1735669883518,-500.0,0.0002,3]
[347302967,1735669883540,-500.0,0.0002,3]
[347302968,1735669883562,-952.43,0.0002,3]
[347302969,1735669883586,-500.0,0.0002,3]
[347302970,1735669883609,-797.86,0.0002,3]
[347302971,1735669883632,-1094.57,0.0002,3]
[347302972,1735669883654,-3050.94,0.0002,3]
[347302973,1735669883678,-8791.02,0.0002,3]
[347302974,1735669883699,-464.6007225,0.0002,3]
[347302975,1735669883720,-797.48,0.0002,3]
[347302976,1735669883742,-738.59,0.0002,3]
[347302977,1735669883764,-734.17,0.0002,3]
[347302978,1735669883789,-576.41,0.0002,3]
[347302979,1735669883810,-151.0,0.0002,2]
[347302980,1735669883832,-500.0,0.0002,3]
[347302981,1735669883853,-730.16,0.0002,3]
[347302982,1735669883874,-891.82,0.0002,3]
[347302983,1735669883896,-843.3,0.0002,3]
[347302984,1735669883918,-500.0,0.0002,3]
[347302985,1735669883940,-500.0,0.0002,3]
[347302986,1735669883962,-500.0,0.0002,3]
[347302987,1735669883985,-1518.08,0.0002,3]
[347302988,1735669884006,-500.0,0.0002,3]
[347302989,1735669884027,-500.0,0.0002,3]
[347302990,1735669884050,-500.0,0.0002,3]
[347302991,1735669884072,-500.0,0.0002,3]
[347302992,1735669884092,-500.0,0.0002,3]
[347302993,1735669884114,-1852.78,0.0002,3]
[347302994,1735669884136,-500.0,0.0002,3]
[347302995,1735669884158,-863.36,0.0002,3]
[347302996,1735669884180,-500.0,0.0002,3]
[347302997,1735669884204,-5139.78,0.0002,3]
[347302998,1735669884228,-500.0,0.0002,3]
[347302999,1735669884251,-749.04,0.0002,3]
[347303000,1735669884276,-1896.6,0.0002,3]
[347303001,1735669884311,-776.35,0.0002,3]
[347303002,1735669884344,-1521.01,0.0002,3]
[347303003,1735669884365,-563.58,0.0002,3]
[347303004,1735669884388,-1227.77,0.0002,3]
[347303005,1735669884410,-8890.06,0.0002,3]
[347303006,1735669884431,-600.29,0.0002,3]
[347303007,1735669884452,-727.38,0.0002,3]
[347303008,1735669884474,-500.0,0.0002,3]
[347303009,1735669884494,-500.0,0.0002,3]
[347303010,1735669884515,-500.0,0.0002,3]
[347303011,1735669884536,-500.0,0.0002,3]
[347303012,1735669884558,-684.02,0.0002,3]
[347303013,1735669884582,-500.0,0.0002,3]
[347303014,1735669884604,-500.0,0.0002,3]
[347303015,1735669884625,-1115.4,0.0002,3]
[347303016,1735669884647,-500.0,0.0002,3]
[347303017,1735669884668,-500.0,0.0002,3]
[347303018,1735669884689,-1002.07,0.0002,3]
[347303019,1735669884712,-40424.46,0.0002,3]
[347303020,1735669884735,-1021.39,0.0002,3]
[347303021,1735669884758,-500.0,0.0002,3]
[347303022,1735669884781,-151.0,0.0002,2]
[347303023,1735669884805,-500.0,0.0002,3]
[347303024,1735669884828,-909.7,0.0002,3]
[347303025,1735669884852,-1245.62,0.0002,3]
[347303026,1735669884875,-500.0,0.0002,3]
[347303027,1735669884896,-500.0,0.0002,3]
[347303028,1735669884920,-3945.13,0.0002,3]
[347303029,1735669884944,-3107.38,0.0002,3]
[347303030,1735669884966,-832.16,0.0002,3]
[347303031,1735669884988,-500.0,0.0002,3]
[347303032,1735669885010,-1192.86,0.0002,3]
[347303033,1735669885032,-500.0,0.0002,3]
[347303034,1735669885053,-500.0,0.0002,3]
[347303035,1735669885074,-500.0,0.0002,3]
[347303036,1735669885095,-521.96,0.0002,3]
[347303037,1735669885118,-768.06,0.0002,3]
[347303038,1735669885236,-502.11,0.0002,3]
[347303039,1735669885259,-1993.67,0.0002,3]
[347303040,1735669885280,-500.0,0.0002,3]
[347303041,1735669885309,-1512.88,0.0002,3]
[347303042,1735669885332,-500.0,0.0002,3]
[347303043,1735669885356,-1489.93,0.0002,3]
[347303044,1735669885380,-1621.23,0.0002,3]
[347303045,1735669885404,-2082.02,0.0002,3]
[347303046,1735669885426,-1485.04,0.0002,3]
[347303047,1735669885448,-500.0,0.0002,3]
[347303048,1735669885471,-417.98344429,0.0002,3]
[347303049,1735669885492,-603.49195,0.0002,2]
[347303050,1735669885513,-151.0,0.0002,2]
[347303051,1735669885538,-603.49195,0.0002,2]
[347303052,1735669885560,-577.55,0.0002,3]
[347303053,1735669885582,-304.331791,0.0002,2]
[347303054,1735669885603,-500.0,0.0002,3]
[347303055,1735669885625,-304.331791,0.0002,2]
[347303056,1735669885647,-752.33,0.0002,3]
[347303057,1735669885669,-500.0,0.0002,3]
[347303058,1735669885690,-500.0,0.0002,3]
[347303059,1735669886560,500.0,0.00019178,2]
[347303060,1735669886865,500.0,0.00019452,3]
[347303061,1735669887103,500.0,0.00019726,3]
[347303062,1735669887340,500.0,0.00019178,2]
[347303063,1735669887375,500.0,0.0002,3]
[347303064,1735669887475,281.88658548,0.00019452,3]
[347303065,1735669887657,632.84,0.00019178,2]
[347303066,1735669887899,632.84,0.00019452,3]
[347303067,1735669887951,793.7,0.00019178,2]
[347303068,1735669888144,168.76211366,0.00019726,3]
[347303069,1735669955026,-300.0,0.00019017,2]
[347303070,1735669955048,-24900.0,0.00019018,2]
[347303071,1735669955069,-597.53672197,0.00019078,2]
[347303072,1735669955091,-664.89,0.00019178,2]
[347303073,1735669955113,-500.0,0.00019178,2]
[347303074,1735669955133,-500.0,0.00019178,2]
[347303075,1735669955155,-500.0,0.00019178,2]
[347303076,1735669955175,-250.00318907,0.00019178,2]
[347303077,1735669955194,-500.0,0.00019178,2]
[347303078,1735669955215,-606.15,0.00019178,2]
[347303079,1735669955236,-500.0,0.00019178,2]
[347303080,1735669955256,-500.0,0.00019178,2]
[347303081,1735669955277,-500.0,0.00019178,2]
[347303082,1735669955298,-500.0,0.00019178,2]
[347303083,1735669955322,-500.0,0.00019178,2]
[347303084,1735669955343,-500.0,0.00019178,2]
[347303085,1735669955364,-500.0,0.00019178,2]
[347303086,1735669955387,-1265.07,0.00019178,2]
[347303087,1735669955409,-500.0,0.00019178,2]
[347303088,1735669955430,-500.0,0.00019178,2]
[347303089,1735669955451,-702.4,0.00019178,2]
[347303090,1735669955472,-1543.99,0.00019178,2]
[347303091,1735669955493,-500.0,0.00019178,2]
[347303092,1735669955512,-500.0,0.00019178,2]
[347303093,1735669955533,-33687.05,0.00019178,2]
[347303094,1735669955553,-500.0,0.00019178,2]
[347303095,1735669955574,-1580.5,0.00019178,2]
[347303096,1735669955595,-500.0,0.00019178,2]
[347303097,1735669955617,-1267.51,0.00019178,2]
[347303098,1735669955639,-2573.51,0.00019178,2]
[347303099,1735669955659,-793.7,0.00019452,3]
[347303100,1735669955680,-664.89,0.00019452,3]
[347303101,1735669955700,-500.0,0.00019452,3]
[347303102,1735669955721,-500.0,0.00019452,3]
[347303103,1735669955741,-500.0,0.00019452,3]
[347303104,1735669955762,-606.15,0.00019452,3]
[347303105,1735669955783,-500.0,0.00019452,3]
[347303106,1735669955803,-500.0,0.00019452,2]
[347303107,1735669955823,-500.0,0.00019452,3]
[347303108,1735669955844,-500.0,0.00019452,3]
[347303109,1735669955864,-443.23609327,0.00019452,3]
[347303110,1735669955884,-500.0,0.00019452,3]
[347303111,1735669955904,-500.0,0.00019452,3]
[347303112,1735669955924,-1265.07,0.00019452,3]
[347303113,1735669955945,-500.0,0.00019452,3]
[347303114,1735669955964,-500.0,0.00019452,3]
[347303115,1735669955985,-702.4,0.00019452,3]
[347303116,1735669956006,-1543.99,0.00019452,3]
[347303117,1735669956026,-500.0,0.00019452,2]
[347303118,1735669956046,-500.0,0.00019452,3]
[347303119,1735669956068,-33687.05,0.00019452,3]
[347303120,1735669956090,-500.0,0.00019452,3]
[347303121,1735669956110,-1580.5,0.00019452,3]
[347303122,1735669956130,-500.0,0.00019452,3]
[347303123,1735669956151,-1267.51,0.00019452,3]
[347303124,1735669956172,-2573.51,0.00019452,3]
[347303125,1735669956192,-464.07788634,0.00019726,3]
[347303126,1735669956212,-793.7,0.00019726,3]
[347303127,1735669956233,-664.89,0.00019726,3]
[347303128,1735669956253,-500.0,0.00019726,3]
[347303129,1735669956273,-500.0,0.00019726,3]
[347303130,1735669956295,-500.0,0.00019726,3]
[347303131,1735669956317,-606.15,0.00019726,3]
[347303132,1735669956340,-500.0,0.00019726,3]
[347303133,1735669956360,-568.84,0.00019726,2]
[347303134,1735669956381,-500.0,0.00019726,3]
[347303135,1735669956403,-356.21071047,0.00019726,3]
[347303136,1735669956423,-500.0,0.00019726,3]
[347303137,1735669956443,-500.0,0.00019726,3]
[347303138,1735669956464,-1265.07,0.00019726,3]
[347303139,1735669956485,-500.0,0.00019726,3]
[347303140,1735669956505,-500.0,0.00019726,3]
[347303141,1735669956526,-1543.99,0.00019726,3]
[347303142,1735669956546,-702.4,0.00019726,3]
[347303143,1735669956566,-500.0,0.00019726,2]
[347303144,1735669956590,-500.0,0.00019726,3]
[347303145,1735669956612,-5999.05539888,0.00019726,3]
[347303146,1735670033318,-302.66710251,0.00019,2]
[347303147,1735670033344,-300.0,0.00019177,2]
[347303148,1735670033367,-3087.33289749,0.00019178,2]
[347303149,1735670104429,922.09,0.00025,120]
[347303151,1735670404998,150.0,0.00025,120]
[347303152,1735670667486,1000.0,0.00025,120]
[347303153,1735670722781,1000.0,0.00025,120]
[347303154,1735670807983,400.0,0.00013973,2]
[347303156,1735670928794,-512.58237362,0.00016845,2]
[347303185,1735671032254,-868.705751,0.00016677,2]
[347303186,1735671032265,-300.0,0.00016999,2]
[347303187,1735671032274,-42778.58132121,0.00017,2]
[347303188,1735671032286,-7221.41867879,0.00017,2]
[347303189,1735671032295,-314.40109367,0.00017087,2]
[347303190,1735671032305,-185.9528876,0.00017187,2]
[347303191,1735671032314,-24900.0,0.0001782,2]
[347303192,1735671032324,-1000.0,0.00018,18]
[347303193,1735671032333,-5164.75756255,0.00018,2]
[347303194,1735671032342,-5164.75756255,0.00018,2]
[347303195,1735671032352,-50000.0,0.00018,2]
[347303196,1735671032361,-401.162054,0.0001825,2]
[347303197,1735671032371,-500.0,0.00018457,2]
[347303198,1735671032380,-420.0,0.00018567,2]
[347303199,1735671032390,-152.0,0.00018604,2]
[347303200,1735671032400,-195.0,0.00018859,2]
[347303201,1735671032410,-1000.0,0.00019,19]
[347303202,1735671032420,-1000.0,0.00019,2]
[347303203,1735671032430,-50000.0,0.00019,2]
[347303204,1735671032440,-192.0,0.00019022,2]
[347303205,1735671032449,-151.0,0.00019062,2]
[347303207,1735671032458,-367.95486597,0.00019078,2]
[347303209,1735671032468,-150.0,0.00019078,2]
[347303211,1735671032478,-500.0,0.00019173,2]
[347303213,1735671032487,-524.671,0.00019177,2]
[347303216,1735671032497,-500.0,0.00019178,2]
[347303218,1735671032507,-160.76815806,0.00019178,2]
[347303220,1735671032516,-367.13289386,0.00019178,2]
[347303222,1735671032526,-500.0,0.00019178,2]
[347303223,1735671032535,-500.0,0.00019178,2]
[347303226,1735671032545,-500.0,0.00019178,2]
[347303228,1735671032554,-8067.78,0.00019178,2]
[347303230,1735671032564,-500.0,0.00019178,2]
[347303231,1735671032573,-500.0,0.00019178,2]
[347303233,1735671032583,-500.0,0.00019178,2]
[347303234,1735671032593,-500.0,0.00019178,2]
[347303235,1735671032602,-500.0,0.00019178,2]
[347303237,1735671032611,-500.0,0.00019178,2]
[347303238,1735671032621,-728.51,0.00019178,2]
[347303239,1735671032634,-524.43,0.00019178,2]
[347303240,1735671032644,-500.0,0.00019178,2]
[347303241,1735671032654,-669.5,0.00019178,2]
[347303242,1735671032663,-500.0,0.00019178,2]
[347303243,1735671032674,-768.69,0.00019178,2]
[347303244,1735671032684,-500.0,0.00019178,2]
[347303245,1735671032694,-500.0,0.00019178,2]
[347303246,1735671032706,-500.0,0.00019178,2]
[347303247,1735671032715,-500.0,0.00019178,2]
[347303248,1735671032724,-500.0,0.00019178,2]
[347303249,1735671032733,-500.0,0.00019178,2]
[347303250,1735671032742,-503.98295423,0.00019178,2]
[347303251,1735671032752,-500.0,0.00019178,2]
[347303252,1735671032761,-500.0,0.00019178,2]
[347303253,1735671032770,-500.0,0.00019178,2]
[347303254,1735671032780,-422.85933435,0.00019178,2]
[347303255,1735671032789,-500.0,0.00019178,2]
[347303256,1735671032799,-500.0,0.00019178,2]
[347303257,1735671032808,-723.92,0.00019178,2]
[347303258,1735671032817,-500.0,0.00019178,2]
[347303259,1735671032827,-713.74,0.00019178,2]
[347303260,1735671032836,-500.0,0.00019178,2]
[347303261,1735671032846,-500.0,0.00019178,2]
[347303262,1735671032856,-537.45,0.00019178,2]
[347303263,1735671032865,-4932.56,0.00019178,2]
[347303264,1735671032875,-500.0,0.00019178,2]
[347303265,1735671032885,-516.88,0.00019178,2]
[347303266,1735671032894,-500.0,0.00019178,2]
[347303267,1735671032903,-500.0,0.00019178,2]
[347303268,1735671032913,-500.0,0.00019178,2]
[347303269,1735671032923,-500.0,0.00019178,2]
[347303270,1735671032933,-500.0,0.00019178,2]
[347303271,1735671032942,-500.0,0.00019178,2]
[347303272,1735671032952,-500.0,0.00019178,2]
[347303273,1735671032961,-500.0,0.00019178,2]
[347303274,1735671032971,-500.0,0.00019178,2]
[347303275,1735671032980,-550.31,0.00019178,2]
[347303276,1735671032990,-500.0,0.00019178,2]
[347303277,1735671033000,-500.0,0.00019178,2]
[347303278,1735671033009,-500.0,0.00019178,2]
[347303279,1735671033019,-500.0,0.00019178,2]
[347303280,1735671033029,-500.0,0.00019178,2]
[347303281,1735671033038,-240.07717217,0.00019178,2]
[347303282,1735671033048,-500.0,0.00019178,2]
[347303283,1735671033058,-500.0,0.00019178,2]
[347303284,1735671033068,-500.0,0.00019178,2]
[347303285,1735671033078,-922.47,0.00019178,2]
[347303286,1735671033087,-500.0,0.00019178,2]
[347303287,1735671033097,-500.0,0.00019178,2]
[347303288,1735671033107,-500.0,0.00019178,2]
[347303289,1735671033117,-168.0,0.00019178,2]
[347303290,1735671033127,-725.35,0.00019178,2]
[347303291,1735671033268,-330.7807669,0.00019178,2]
[347303292,1735671033278,-500.0,0.00019178,2]
[347303293,1735671033288,-1141.71,0.00019178,2]
[347303294,1735671033297,-500.0,0.00019178,2]
[347303295,1735671033307,-500.0,0.00019178,2]
[347303296,1735671033317,-500.0,0.00019178,2]
[347303297,1735671033326,-500.0,0.00019178,2]
[347303298,1735671033336,-500.0,0.00019178,2]
[347303299,1735671033345,-497.53869906,0.00019178,2]
[347303300,1735671033355,-588.33,0.00019178,2]
[347303301,1735671033364,-500.0,0.00019178,2]
[347303302,1735671033374,-500.0,0.00019178,2]
[347303303,1735671033384,-500.0,0.00019178,2]
[347303304,1735671033394,-500.0,0.00019178,2]
[347303305,1735671033404,-500.0,0.00019178,2]
[347303306,1735671033413,-1119.36,0.00019178,2]
[347303307,1735671033423,-500.0,0.00019178,2]
[347303308,1735671033432,-500.0,0.00019178,2]
[347303309,1735671033441,-758.08,0.00019178,2]
[347303310,1735671033450,-500.0,0.00019178,2]
[347303311,1735671033460,-696.04,0.00019178,2]
[347303312,1735671033469,-311.61234024,0.00019178,2]
[347303373,1735671039923,-1.80546029,0.00017855,2]
[347303376,1735671039937,-312.59563337,0.00017855,2]
[347303378,1735671039947,-188.38765976,0.00019178,2]
[347303380,1735671039956,-1267.01670687,0.00019178,2]
[347303562,1735671332657,153.0,0.00025,120]
[347303564,1735672120211,-294.704041,0.00017804,2]
[347303565,1735672120238,-300.0,0.00017934,2]
[347303566,1735672120264,-854.87531262,0.00017935,2]
[347303567,1735672120311,-641.52309554,0.00017935,2]
[347303568,1735672120356,-1449.57935362,0.00017935,2]
[347303619,1735672232653,-300.0,0.00017934,2]
[347303622,1735672232663,-21954.02223822,0.00017935,2]
[347303624,1735672232673,-159.89239171,0.00018123,2]
[347303626,1735672232683,-1874.50180597,0.00018213,2]
[347303628,1735672232693,-10459.39442925,0.00018375,2]
[347303630,1735672232703,-256.2601287,0.00018611,2]
[347303632,1735672232712,-10459.39442925,0.00018711,2]
[347303634,1735672232722,-306.0,0.00018852,2]
[347303636,1735672232732,-762.468,0.00019,2]
[347303638,1735672232741,-10459.39442925,0.00019043,2]
[347303640,1735672232750,-408.04932633,0.00019078,2]
[347303642,1735672232760,-1259.6813498,0.00019078,2]
[347303644,1735672232769,-509.5711542,0.000191,2]
[347303646,1735672232778,-153.0,0.000191,2]
[347303648,1735672232788,-306.0,0.000191,2]
[347303650,1735672232796,-256.26012868,0.00019161,2]
[347303652,1735672232805,-151.0,0.00019166,2]
[347303654,1735672232814,-500.0,0.00019173,2]
[347303656,1735672232824,-517.74143387,0.00019173,2]
[347303657,1735672232833,-633.64993133,0.00019173,2]
[347303659,1735672232842,-576.713,0.00019177,2]
[347303661,1735672232852,-500.0,0.00019177,2]
[347303664,1735672232862,-500.41552722,0.00019177,2]
[347303666,1735672232871,-524.21365466,0.00019177,2]
[347303668,1735672232880,-196.8672722,0.00019177,2]
[347303670,1735672232889,-204.04746096,0.00019177,2]
[347303672,1735672232899,-500.0,0.00019177,2]
[347303674,1735672232908,-327.42009509,0.00019177,2]
[347303676,1735672232917,-15193.51622775,0.00019178,2]
[347303678,1735672232927,-147282.52599327,0.00019178,2]
[347303680,1735672232937,-500.0,0.00019178,2]
[347303682,1735672232947,-500.0,0.00019178,2]
[347303684,1735672232956,-615.29218176,0.00019178,2]
[347303685,1735672232966,-500.0,0.00019178,2]
[347303687,1735672232975,-500.0,0.00019178,2]
[347303689,1735672232984,-749.63,0.00019178,2]
[347303691,1735672232993,-500.0,0.00019178,2]
[347303693,1735672233003,-500.0,0.00019178,2]
[347303695,1735672233012,-1000.0,0.00019178,2]
[347303698,1735672233024,-566.14,0.00019178,2]
[347303699,1735672233033,-6322.25,0.00019178,2]
[347303702,1735672233042,-500.0,0.00019178,2]
[347303704,1735672233052,-500.0,0.00019178,2]
[347303706,1735672233062,-500.0,0.00019178,2]
[347303707,1735672233071,-504.52758412,0.00019178,2]
[347303709,1735672233081,-188.0,0.00019178,2]
[347303711,1735672233090,-508.03540037,0.00019178,2]
[347303713,1735672233099,-500.0,0.00019178,2]
[347303715,1735672233108,-500.0,0.00019178,2]
[347303717,1735672233118,-500.0,0.00019178,2]
[347303719,1735672233127,-500.0,0.00019178,2]
[347303721,1735672233137,-500.0,0.00019178,2]
[347303723,1735672233146,-613.12939223,0.00019178,2]
[347303725,1735672233155,-508.23314373,0.00019178,2]
[347303727,1735672233165,-438.13746592,0.00019178,2]
[347303729,1735672233174,-600.83,0.00019178,2]
[347303731,1735672233186,-500.0,0.00019178,2]
[347303734,1735672233196,-500.0,0.00019178,2]
[347303735,1735672233205,-500.0,0.00019178,2]
[347303737,1735672233215,-500.0,0.00019178,2]
[347303739,1735672233225,-500.0,0.00019178,2]
[347303742,1735672233234,-2940.04,0.00019178,2]
[347303744,1735672233244,-500.0,0.00019178,2]
[347303746,1735672233254,-500.0,0.00019178,2]
[347303748,1735672233263,-500.0,0.00019178,2]
[347303750,1735672233273,-500.0,0.00019178,2]
[347303752,1735672233283,-455.0,0.00019178,2]
[347303754,1735672233293,-500.0,0.00019178,2]
[347303756,1735672233303,-483.09680624,0.00019178,2]
[347303758,1735672233312,-551.47560742,0.00019178,2]
[347303812,1735672238295,-500.0,0.00019173,2]
[347303813,1735672238305,-579.24439258,0.00019178,2]
[347303814,1735672238314,-601.04,0.00019178,2]
[347303815,1735672238324,-500.0,0.00019178,2]
[347303816,1735672238333,-500.0,0.00019178,2]
[347303817,1735672238343,-500.0,0.00019178,2]
[347303818,1735672238354,-500.0,0.00019178,2]
[347303819,1735672238363,-595.84186455,0.00019178,2]
[347303820,1735672238374,-500.0,0.00019178,2]
[347303821,1735672238387,-571.74926765,0.00019178,2]
[347303822,1735672238396,-503.14849776,0.00019178,2]
[347303823,1735672238406,-500.0,0.00019178,2]
[347303824,1735672238415,-500.0,0.00019178,2]
[347303825,1735672238425,-492.28703826,0.00019178,2]
[347303826,1735672238435,-622.61,0.00019178,2]
[347303827,1735672238446,-500.0,0.00019178,2]
[347303828,1735672238458,-320.79362068,0.00019178,2]
[347303829,1735672238468,-500.0,0.00019178,2]
[347303830,1735672238478,-500.0,0.00019178,2]
[347303831,1735672238487,-500.98052566,0.00019178,2]
[347303832,1735672238497,-503.128924,0.00019178,2]
[347303833,1735672238507,-501.88320923,0.00019178,2]
[347303834,1735672238518,-500.0,0.00019178,2]
[347303835,1735672238527,-502.94030647,0.00019178,2]
[347303836,1735672238537,-516.03,0.00019178,2]
[347303837,1735672238547,-500.0,0.00019178,2]
[347303838,1735672238556,-502.18538924,0.00019178,2]
[347303839,1735672238565,-500.0,0.00019178,2]
[347303840,1735672238575,-500.0,0.00019178,2]
[347303841,1735672238584,-500.0,0.00019178,2]
[347303842,1735672238594,-500.0,0.00019178,2]
[347303843,1735672238603,-500.0,0.00019178,2]
[347303844,1735672238613,-500.0,0.00019178,2]
[347303845,1735672238622,-500.0,0.00019178,2]
[347303846,1735672238632,-500.0,0.00019178,2]
[347303847,1735672238641,-500.0,0.00019178,2]
[347303848,1735672238650,-522.9067441,0.00019178,2]
[347303849,1735672238660,-500.0,0.00019178,2]
[347303850,1735672238669,-500.0,0.00019178,2]
[347303851,1735672238678,-502.0360665,0.00019178,2]
[347303852,1735672238687,-500.0,0.00019178,2]
[347303853,1735672238696,-503.12171205,0.00019178,2]
[347303854,1735672238706,-500.0,0.00019178,2]
[347303855,1735672238715,-500.0,0.00019178,2]
[347303856,1735672238724,-502.91239522,0.00019178,2]
[347303857,1735672238734,-231.05700933,0.00019178,2]
[347303858,1735672238743,-500.0,0.00019178,2]
[347303859,1735672238752,-500.0,0.00019178,2]
[347303860,1735672238762,-503.96162591,0.00019178,2]
[347303861,1735672238771,-500.0,0.00019178,2]
[347303862,1735672238780,-500.0,0.00019178,2]
[347303863,1735672238790,-500.0,0.00019178,2]
[347303864,1735672238799,-500.0,0.00019178,2]
[347303865,1735672238808,-500.0,0.00019178,2]
[347303866,1735672238818,-500.0,0.00019178,2]
[347303867,1735672238827,-500.0,0.00019178,2]
[347303868,1735672238837,-500.0,0.00019178,2]
[347303869,1735672238846,-768.99,0.00019178,2]
[347303870,1735672238855,-500.0,0.00019178,2]
[347303871,1735672238864,-887.19,0.00019178,2]
[347303872,1735672238873,-500.0,0.00019178,2]
[347303873,1735672238882,-500.0,0.00019178,2]
[347303874,1735672238891,-500.0,0.00019178,2]
[347303875,1735672238901,-232.9285885,0.00019178,2]
[347303876,1735672238911,-501.52216722,0.00019178,2]
[347303877,1735672238920,-500.0,0.00019178,2]
[347303878,1735672238929,-534.58698682,0.00019178,2]
[347303879,1735672238940,-1513.63,0.00019178,2]
[347303880,1735672238950,-500.0,0.00019178,2]
[347303881,1735672238959,-500.0,0.00019178,2]
[347303882,1735672238968,-500.0,0.00019178,2]
[347303883,1735672238978,-673.24,0.00019178,2]
[347303884,1735672238988,-500.0,0.00019178,2]
[347303885,1735672238997,-500.0,0.00019178,2]
[347303886,1735672239006,-500.0,0.00019178,2]
[347303887,1735672239016,-754.24,0.00019178,2]
[347303888,1735672239026,-500.0,0.00019178,2]
[347303889,1735672239035,-591.71422377,0.00019178,2]
[347303890,1735672239044,-500.0,0.00019178,2]
[347303891,1735672239053,-500.0,0.00019178,2]
[347303892,1735672239063,-500.0,0.00019178,2]
[347303893,1735672239072,-500.0,0.00019178,2]
[347303894,1735672239082,-542.51371461,0.00019178,2]
[347303895,1735672239091,-500.0,0.00019178,2]
[347303896,1735672239100,-500.0,0.00019178,2]
[347303897,1735672239109,-502.51270683,0.00019178,2]
[347303898,1735672239119,-500.0,0.00019178,2]
[347303899,1735672239128,-502.45775699,0.00019178,2]
[347303900,1735672239137,-500.0,0.00019178,2]
[347303901,1735672239146,-500.0,0.00019178,2]
[347303902,1735672239156,-500.0,0.00019178,2]
[347303903,1735672239166,-500.0,0.00019178,2]
[347303904,1735672239175,-516.91,0.00019178,2]
[347303905,1735672239184,-500.0,0.00019178,2]
[347303906,1735672239194,-500.0,0.00019178,2]
[347303907,1735672239203,-503.49312441,0.00019178,2]
[347303908,1735672239212,-500.0,0.00019178,2]
[347303909,1735672239222,-5194.95,0.00019178,2]
[347303910,1735672239232,-504.41127704,0.00019178,2]
[347303911,1735672239241,-500.0,0.00019178,2]
[347303912,1735672239250,-500.0,0.00019178,2]
[347303917,1735672239260,-207.31886022,0.00019178,2]
[347303918,1735672239387,-500.0,0.00019178,2]
[347303919,1735672239398,-500.0,0.00019178,2]
[347303921,1735672239408,-503.6533323,0.00019178,2]
[347303923,1735672239419,-500.0,0.00019178,2]
[347303925,1735672239428,-500.0,0.00019178,2]
[347303927,1735672239439,-500.0,0.00019178,2]
[347303929,1735672239450,-501.97013067,0.00019178,2]